[Event "Early-Titled-Tuesday-Blitz-May-14-2024"]
[Site "Chess.com"]
[Date "2024.05.14"]
[Round "7"]
[White "scarabee43"]
[Black "nabukatnezarr"]
[Result "1-0"]
[WhiteElo "2824"]
[BlackElo "2612"]
[TimeControl "180+1"]
[EndTime "9:19:25 PDT"]
[Termination "scarabee43 won on time"]

1. Nf3 {[%clk 0:03:00.9]} 1... Nf6 {[%clk 0:02:59.7]} 2. c4 {[%clk 0:03:01.3]}
2... e6 {[%clk 0:02:57.5]} 3. b3 {[%clk 0:03:00.7]} 3... b6 {[%clk 0:02:39.5]}
4. Bb2 {[%clk 0:03:00.4]} 4... Bb7 {[%clk 0:02:40.1]} 5. g3 {[%clk 0:03:00.4]}
5... g6 {[%clk 0:02:39.8]} 6. Bg2 {[%clk 0:03:00]} 6... Bg7 {[%clk 0:02:40.5]}
7. O-O {[%clk 0:03:00.3]} 7... O-O {[%clk 0:02:41.2]} 8. d3 {[%clk 0:02:55.8]}
8... d6 {[%clk 0:02:41.6]} 9. Nbd2 {[%clk 0:02:56.4]} 9... Nbd7 {[%clk
0:02:41.8]} 10. b4 {[%clk 0:02:55.9]} 10... c5 {[%clk 0:02:37.3]} 11. b5 {[%clk
0:02:53.6]} 11... a6 {[%clk 0:02:23.2]} 12. a4 {[%clk 0:02:53.1]} 12... Qc7
{[%clk 0:02:23.2]} 13. Qb3 {[%clk 0:02:43.7]} 13... a5 {[%clk 0:02:10.2]} 14. e4
{[%clk 0:02:31.7]} 14... d5 {[%clk 0:01:50.8]} 15. exd5 {[%clk 0:02:13.4]} 15...
exd5 {[%clk 0:01:50.3]} 16. Rfe1 {[%clk 0:02:12.4]} 16... d4 {[%clk 0:01:46]}
17. Re2 {[%clk 0:02:10.5]} 17... Rae8 {[%clk 0:01:45.7]} 18. Rae1 {[%clk
0:02:10.9]} 18... Rxe2 {[%clk 0:01:45.7]} 19. Rxe2 {[%clk 0:02:11.6]} 19... Re8
{[%clk 0:01:44.8]} 20. Qd1 {[%clk 0:02:12.4]} 20... Qc8 {[%clk 0:01:39.8]} 21.
Ng5 {[%clk 0:02:01.2]} 21... Bxg2 {[%clk 0:01:38.3]} 22. Kxg2 {[%clk 0:02:01.7]}
22... h6 {[%clk 0:01:34.7]} 23. Nge4 {[%clk 0:02:01.2]} 23... Nxe4 {[%clk
0:01:27.5]} 24. Nxe4 {[%clk 0:01:59.3]} 24... Qa8 {[%clk 0:01:15]} 25. Kg1
{[%clk 0:01:30.8]} 25... Ne5 {[%clk 0:01:15.1]} 26. f4 {[%clk 0:01:31.1]} 26...
Ng4 {[%clk 0:01:10]} 27. Bc1 {[%clk 0:01:22.7]} 27... Qd8 {[%clk 0:01:00.9]} 28.
Qe1 {[%clk 0:01:20.7]} 28... Re6 {[%clk 0:00:45.9]} 29. Nf2 {[%clk 0:01:18.7]}
29... Ne3 {[%clk 0:00:12.9]} 30. Bxe3 {[%clk 0:01:18]} 30... dxe3 {[%clk
0:00:13.8]} 31. Rxe3 {[%clk 0:01:18.1]} 31... Rxe3 {[%clk 0:00:13.4]} 32. Qxe3
{[%clk 0:01:18.4]} 32... Bd4 {[%clk 0:00:14.3]} 33. Qe2 {[%clk 0:01:11.2]} 33...
Qf6 {[%clk 0:00:06.7]} 34. Kg2 {[%clk 0:01:10.1]} 34... Bxf2 {[%clk 0:00:06.7]}
35. Kxf2 {[%clk 0:01:07.7]} 35... Qa1 {[%clk 0:00:07]} 36. Qe5 {[%clk
0:01:05.7]} 36... Qxa4 {[%clk 0:00:05.1]} 37. Qb8+ {[%clk 0:01:05.9]} 37... Kg7
{[%clk 0:00:05]} 38. Qxb6 {[%clk 0:01:06.5]} 38... Qc2+ {[%clk 0:00:05.3]} 39.
Ke3 {[%clk 0:01:06.8]} 39... Qc1+ {[%clk 0:00:04.4]} 40. Ke4 {[%clk 0:01:07]}
40... Qh1+ {[%clk 0:00:04.9]} 41. Ke5 {[%clk 0:01:07.4]} 41... Qe1+ {[%clk
0:00:03.1]} 42. Kd5 {[%clk 0:01:07.4]} 42... Qe2 {[%clk 0:00:02.9]} 43. Qxc5
{[%clk 0:01:07.1]} 43... Qxh2 {[%clk 0:00:02.1]} 44. b6 {[%clk 0:01:05.7]} 44...
Qg2+ {[%clk 0:00:02.5]} 45. Kd6 {[%clk 0:01:05.4]} 45... a4 {[%clk 0:00:02.4]}
46. Kc7 {[%clk 0:01:05.6]} 46... Qxg3 {[%clk 0:00:01.1]} 47. Qe5+ {[%clk
0:01:06]} 47... f6 {[%clk 0:00:00.8]} 48. Qe7+ {[%clk 0:01:05.9]} 48... Kg8
{[%clk 0:00:01.5]} 49. b7 {[%clk 0:01:06.2]} 49... Qxf4+ {[%clk 0:00:01.3]} 50.
Qd6 {[%clk 0:01:06.6]} 1-0

[Event "Early-Titled-Tuesday-Blitz-May-14-2024"]
[Site "Chess.com"]
[Date "2024.05.14"]
[Round "7"]
[White "aloe_normansen"]
[Black "ChessQueen"]
[Result "0-1"]
[WhiteElo "2570"]
[BlackElo "2778"]
[TimeControl "180+1"]
[EndTime "9:19:25 PDT"]
[Termination "ChessQueen won by checkmate"]

1. e4 {[%clk 0:03:00.9]} 1... c6 {[%clk 0:02:59.9]} 2. d4 {[%clk 0:03:00.3]}
2... d5 {[%clk 0:03:00.5]} 3. e5 {[%clk 0:03:01]} 3... c5 {[%clk 0:03:01.1]} 4.
dxc5 {[%clk 0:02:59.7]} 4... e6 {[%clk 0:03:01.4]} 5. a3 {[%clk 0:02:59.6]} 5...
Bxc5 {[%clk 0:03:01]} 6. Qg4 {[%clk 0:03:00.1]} 6... Ne7 {[%clk 0:02:59.5]} 7.
Nf3 {[%clk 0:02:57.4]} 7... Nf5 {[%clk 0:02:57]} 8. Bd3 {[%clk 0:02:55.1]} 8...
h5 {[%clk 0:02:56.1]} 9. Qf4 {[%clk 0:02:52.6]} 9... Nc6 {[%clk 0:02:50.8]} 10.
b4 {[%clk 0:02:50.7]} 10... Be7 {[%clk 0:02:46.3]} 11. h4 {[%clk 0:02:42.2]}
11... Qc7 {[%clk 0:02:44.1]} 12. Bb2 {[%clk 0:02:40.3]} 12... f6 {[%clk
0:02:29.1]} 13. Bxf5 {[%clk 0:02:22.7]} 13... exf5 {[%clk 0:02:28.5]} 14. Qe3
{[%clk 0:02:01.4]} 14... O-O {[%clk 0:02:23.9]} 15. O-O {[%clk 0:01:57.2]} 15...
f4 {[%clk 0:02:20.9]} 16. Qxf4 {[%clk 0:01:48.8]} 16... fxe5 {[%clk 0:02:16.6]}
17. Qg3 {[%clk 0:01:48.3]} 17... Bd6 {[%clk 0:02:07.7]} 18. Qg6 {[%clk
0:01:27.4]} 18... Bg4 {[%clk 0:01:58.6]} 19. Ng5 {[%clk 0:01:22.9]} 19... Bf5
{[%clk 0:01:42.8]} 20. Qxh5 {[%clk 0:01:22.9]} 20... g6 {[%clk 0:01:38.5]} 21.
Qd1 {[%clk 0:01:17.8]} 21... d4 {[%clk 0:01:33.6]} 22. c3 {[%clk 0:01:12.3]}
22... Rad8 {[%clk 0:01:31.8]} 23. cxd4 {[%clk 0:01:09.7]} 23... Nxd4 {[%clk
0:01:29.8]} 24. Nc3 {[%clk 0:01:07.1]} 24... Be7 {[%clk 0:01:25.5]} 25. Nce4
{[%clk 0:00:55]} 25... Qc4 {[%clk 0:01:23.6]} 26. Re1 {[%clk 0:00:28.1]} 26...
Nc2 {[%clk 0:01:17.1]} 27. Qc1 {[%clk 0:00:23.8]} 27... b5 {[%clk 0:01:09.5]}
28. Bxe5 {[%clk 0:00:19.8]} 28... Nxe1 {[%clk 0:01:04.3]} 29. Qxe1 {[%clk
0:00:20.7]} 29... Bxg5 {[%clk 0:01:03]} 30. Nxg5 {[%clk 0:00:19.5]} 30... Rfe8
{[%clk 0:00:59.5]} 31. f4 {[%clk 0:00:15.9]} 31... Rd3 {[%clk 0:00:44.8]} 32.
Qf2 {[%clk 0:00:14.8]} 32... Re7 {[%clk 0:00:36.1]} 33. Qb2 {[%clk 0:00:08.4]}
33... Qd5 {[%clk 0:00:33.2]} 34. Kh2 {[%clk 0:00:07.1]} 34... Rd2 {[%clk
0:00:32.8]} 35. Rd1 {[%clk 0:00:02.8]} 35... Qxg2# {[%clk 0:00:31.8]} 0-1

[Event "Early-Titled-Tuesday-Blitz-May-14-2024"]
[Site "Chess.com"]
[Date "2024.05.14"]
[Round "7"]
[White "only_strong_moves"]
[Black "subham777"]
[Result "1-0"]
[WhiteElo "2704"]
[BlackElo "2532"]
[TimeControl "180+1"]
[EndTime "9:19:25 PDT"]
[Termination "only_strong_moves won by resignation"]

1. Nc3 {[%clk 0:03:00.9]} 1... d5 {[%clk 0:02:59.7]} 2. e4 {[%clk 0:03:00.8]}
2... e6 {[%clk 0:02:59.4]} 3. d4 {[%clk 0:03:00.3]} 3... Nf6 {[%clk 0:02:59.2]}
4. e5 {[%clk 0:03:00.6]} 4... Nfd7 {[%clk 0:02:59.1]} 5. Nce2 {[%clk 0:03:00.7]}
5... c5 {[%clk 0:02:58.5]} 6. c3 {[%clk 0:03:01.4]} 6... Nc6 {[%clk 0:02:58.9]}
7. Nf3 {[%clk 0:03:02.1]} 7... Be7 {[%clk 0:02:59.2]} 8. Nf4 {[%clk 0:03:02.7]}
8... a6 {[%clk 0:02:56.7]} 9. Bd3 {[%clk 0:03:03.1]} 9... b5 {[%clk 0:02:56.6]}
10. h4 {[%clk 0:03:00.1]} 10... Qb6 {[%clk 0:02:54.9]} 11. Be3 {[%clk
0:02:58.5]} 11... a5 {[%clk 0:02:54.6]} 12. O-O {[%clk 0:02:56]} 12... c4 {[%clk
0:02:51.4]} 13. Bc2 {[%clk 0:02:54.8]} 13... h6 {[%clk 0:02:51.8]} 14. Nh5
{[%clk 0:02:54.2]} 14... Bf8 {[%clk 0:02:37.5]} 15. Ne1 {[%clk 0:02:50.5]} 15...
g6 {[%clk 0:02:35.9]} 16. Ng3 {[%clk 0:02:47.9]} 16... h5 {[%clk 0:02:32.6]} 17.
Qd2 {[%clk 0:02:46.5]} 17... Be7 {[%clk 0:02:30.8]} 18. b3 {[%clk 0:02:44.3]}
18... Bxh4 {[%clk 0:02:26.5]} 19. Ne2 {[%clk 0:02:44.1]} 19... Be7 {[%clk
0:02:24.1]} 20. bxc4 {[%clk 0:02:42.8]} 20... bxc4 {[%clk 0:02:22.8]} 21. Rb1
{[%clk 0:02:42.5]} 21... Qd8 {[%clk 0:02:21.8]} 22. Ba4 {[%clk 0:02:38.2]} 22...
Na7 {[%clk 0:02:16.3]} 23. Nf3 {[%clk 0:02:29.3]} 23... Kf8 {[%clk 0:02:08.2]}
24. Bg5 {[%clk 0:02:26.1]} 24... Bxg5 {[%clk 0:01:54.6]} 25. Nxg5 {[%clk
0:02:27]} 25... Kg7 {[%clk 0:01:47.7]} 26. f4 {[%clk 0:02:12.3]} 26... Nf8
{[%clk 0:01:42.6]} 27. Qe3 {[%clk 0:02:05.7]} 27... h4 {[%clk 0:01:37.1]} 28.
Qf3 {[%clk 0:01:56.5]} 28... Qe7 {[%clk 0:01:33.4]} 29. Nh3 {[%clk 0:01:51]}
29... Nh7 {[%clk 0:01:21.9]} 30. Rb6 {[%clk 0:01:49.8]} 30... Bd7 {[%clk
0:01:12.6]} 31. Rb7 {[%clk 0:01:48.3]} 31... Rhd8 {[%clk 0:01:13.1]} 32. f5
{[%clk 0:01:43.7]} 32... exf5 {[%clk 0:01:00.6]} 33. Nef4 {[%clk 0:01:44.3]}
33... Qe8 {[%clk 0:00:52.8]} 34. e6 {[%clk 0:01:28.4]} 34... Bxa4 {[%clk
0:00:37.1]} 35. Rxf7+ {[%clk 0:01:27.7]} 35... Qxf7 {[%clk 0:00:32.6]} 36. exf7
{[%clk 0:01:27.4]} 36... Kxf7 {[%clk 0:00:33]} 37. Re1 {[%clk 0:01:16.8]} 37...
Bc6 {[%clk 0:00:20.5]} 38. Re6 {[%clk 0:01:16.3]} 38... Nf8 {[%clk 0:00:15.8]}
39. Ng5+ {[%clk 0:01:13.9]} 39... Kg8 {[%clk 0:00:16.3]} 40. Rf6 {[%clk
0:00:58]} 40... Be8 {[%clk 0:00:15.1]} 41. Nfe6 {[%clk 0:00:46.2]} 41... Nxe6
{[%clk 0:00:14.5]} 42. Nxe6 {[%clk 0:00:47.1]} 42... Rd7 {[%clk 0:00:15]} 43.
Rf8+ {[%clk 0:00:46]} 43... Kh7 {[%clk 0:00:14.8]} 44. Qf4 {[%clk 0:00:46.3]}
1-0

[Event "Early-Titled-Tuesday-Blitz-May-14-2024"]
[Site "Chess.com"]
[Date "2024.05.14"]
[Round "7"]
[White "djano"]
[Black "Alexchess1984"]
[Result "0-1"]
[WhiteElo "2537"]
[BlackElo "2690"]
[TimeControl "180+1"]
[EndTime "9:19:27 PDT"]
[Termination "Alexchess1984 won by resignation"]

1. e4 {[%clk 0:02:59.8]} 1... e6 {[%clk 0:02:59.3]} 2. Qe2 {[%clk 0:02:58.6]}
2... Nc6 {[%clk 0:02:56]} 3. Nf3 {[%clk 0:02:58.5]} 3... e5 {[%clk 0:02:54.9]}
4. g3 {[%clk 0:02:57.8]} 4... Nf6 {[%clk 0:02:54]} 5. Bg2 {[%clk 0:02:57.8]}
5... Bc5 {[%clk 0:02:51.8]} 6. O-O {[%clk 0:02:57.4]} 6... O-O {[%clk
0:02:51.8]} 7. c3 {[%clk 0:02:57.8]} 7... d6 {[%clk 0:02:43]} 8. a4 {[%clk
0:02:56.3]} 8... a5 {[%clk 0:02:41.5]} 9. d3 {[%clk 0:02:56.4]} 9... h6 {[%clk
0:02:38.6]} 10. Nbd2 {[%clk 0:02:53.6]} 10... Re8 {[%clk 0:02:37.4]} 11. Nc4
{[%clk 0:02:53.3]} 11... Be6 {[%clk 0:02:31.7]} 12. Ne3 {[%clk 0:02:53.5]} 12...
Ba7 {[%clk 0:02:22.2]} 13. Nh4 {[%clk 0:02:51.1]} 13... Ne7 {[%clk 0:02:18.9]}
14. Kh1 {[%clk 0:02:44.3]} 14... d5 {[%clk 0:02:09.2]} 15. f4 {[%clk 0:02:44]}
15... exf4 {[%clk 0:02:07.3]} 16. gxf4 {[%clk 0:02:44.9]} 16... dxe4 {[%clk
0:02:06.1]} 17. dxe4 {[%clk 0:02:44.1]} 17... Ng6 {[%clk 0:01:49.4]} 18. Nxg6
{[%clk 0:02:35]} 18... fxg6 {[%clk 0:01:49.2]} 19. e5 {[%clk 0:02:19.8]} 19...
Nh5 {[%clk 0:01:48.4]} 20. Bxb7 {[%clk 0:02:14.3]} 20... Qh4 {[%clk 0:01:46.1]}
21. Qf3 {[%clk 0:02:03.1]} 21... Rad8 {[%clk 0:01:40.3]} 22. Ng2 {[%clk
0:01:57.6]} 22... Qe7 {[%clk 0:01:33.9]} 23. Be3 {[%clk 0:01:54.2]} 23... Bxe3
{[%clk 0:01:22.6]} 24. Nxe3 {[%clk 0:01:55.1]} 24... Rf8 {[%clk 0:01:20.4]} 25.
Qe4 {[%clk 0:01:43]} 25... Rd2 {[%clk 0:01:15.5]} 26. Rad1 {[%clk 0:01:34.7]}
26... Rxb2 {[%clk 0:01:12.3]} 27. Bd5 {[%clk 0:01:33.4]} 27... Bxd5 {[%clk
0:01:03.3]} 28. Qxd5+ {[%clk 0:01:34.3]} 28... Kh8 {[%clk 0:01:02.3]} 29. Rd2
{[%clk 0:01:20.2]} 29... Rxd2 {[%clk 0:00:59.6]} 30. Qxd2 {[%clk 0:01:21.1]}
30... Nxf4 {[%clk 0:00:58.6]} 31. Ng4 {[%clk 0:01:05.8]} 31... g5 {[%clk
0:00:53.5]} 32. Rd1 {[%clk 0:01:00.2]} 32... Qe6 {[%clk 0:00:51.1]} 33. Qd7
{[%clk 0:00:55.8]} 33... Qa2 {[%clk 0:00:44.6]} 34. Ne3 {[%clk 0:00:46.4]} 34...
Qe2 {[%clk 0:00:37.8]} 35. Rf1 {[%clk 0:00:16]} 35... Qxe3 {[%clk 0:00:36.6]}
36. Qc6 {[%clk 0:00:13.9]} 36... Qxe5 {[%clk 0:00:35.1]} 0-1

[Event "Early-Titled-Tuesday-Blitz-May-14-2024"]
[Site "Chess.com"]
[Date "2024.05.14"]
[Round "7"]
[White "LamaChampetre"]
[Black "jaramsdal"]
[Result "0-1"]
[WhiteElo "2204"]
[BlackElo "2388"]
[TimeControl "180+1"]
[EndTime "9:19:27 PDT"]
[Termination "jaramsdal won by resignation"]

1. d4 {[%clk 0:02:56.4]} 1... Nf6 {[%clk 0:02:58.2]} 2. c4 {[%clk 0:02:56.8]}
2... e6 {[%clk 0:02:57.7]} 3. Nf3 {[%clk 0:02:56.7]} 3... b6 {[%clk 0:02:57.8]}
4. g3 {[%clk 0:02:54.7]} 4... Bb7 {[%clk 0:02:57.9]} 5. Bg2 {[%clk 0:02:55.3]}
5... Be7 {[%clk 0:02:58.4]} 6. O-O {[%clk 0:02:55.3]} 6... O-O {[%clk
0:02:58.8]} 7. d5 {[%clk 0:02:55.4]} 7... exd5 {[%clk 0:02:56.4]} 8. Nh4 {[%clk
0:02:56]} 8... c6 {[%clk 0:02:54.8]} 9. cxd5 {[%clk 0:02:55.9]} 9... Nxd5 {[%clk
0:02:55.7]} 10. Nf5 {[%clk 0:02:56.2]} 10... Nc7 {[%clk 0:02:52.3]} 11. Nc3
{[%clk 0:02:53.4]} 11... d5 {[%clk 0:02:51.7]} 12. e4 {[%clk 0:02:53.4]} 12...
Bf6 {[%clk 0:02:49.4]} 13. Re1 {[%clk 0:02:48.2]} 13... Re8 {[%clk 0:02:47.3]}
14. Qg4 {[%clk 0:02:26]} 14... Bc8 {[%clk 0:02:28.9]} 15. Bf4 {[%clk 0:02:05.5]}
15... d4 {[%clk 0:02:19.6]} 16. Rad1 {[%clk 0:02:00.5]} 16... Bxf5 {[%clk
0:02:15.4]} 17. Qxf5 {[%clk 0:01:47.3]} 17... g6 {[%clk 0:02:13.2]} 18. Qg4
{[%clk 0:01:40.5]} 18... Nd7 {[%clk 0:02:08.7]} 19. e5 {[%clk 0:01:17.7]} 19...
dxc3 {[%clk 0:02:07.6]} 20. exf6 {[%clk 0:01:12.4]} 20... Rxe1+ {[%clk
0:01:49.6]} 21. Rxe1 {[%clk 0:01:02.6]} 21... Nxf6 {[%clk 0:01:49.7]} 22. Qg5
{[%clk 0:01:00]} 22... Ne6 {[%clk 0:01:45.7]} 23. Rxe6 {[%clk 0:00:36.6]} 23...
fxe6 {[%clk 0:01:46.6]} 24. bxc3 {[%clk 0:00:36.1]} 24... Nd5 {[%clk 0:01:35.7]}
25. Qe5 {[%clk 0:00:15.6]} 25... Nxf4 {[%clk 0:01:35.7]} 26. Qxf4 {[%clk
0:00:16.2]} 26... Qd1+ {[%clk 0:01:33.7]} 27. Bf1 {[%clk 0:00:16.5]} 27... Rd8
{[%clk 0:01:30.6]} 28. Qf6 {[%clk 0:00:15.7]} 28... Qd5 {[%clk 0:01:27.7]} 29.
c4 {[%clk 0:00:14.3]} 29... Qd7 {[%clk 0:01:21.7]} 30. h4 {[%clk 0:00:14.2]}
30... Rf8 {[%clk 0:01:21.3]} 31. Qe5 {[%clk 0:00:14.3]} 31... Qf7 {[%clk
0:01:11.5]} 32. f4 {[%clk 0:00:12.5]} 32... Qf5 {[%clk 0:01:10.6]} 33. Qc7
{[%clk 0:00:10.8]} 33... e5 {[%clk 0:00:59.6]} 34. Bg2 {[%clk 0:00:04.2]} 34...
exf4 {[%clk 0:00:55]} 35. Bxc6 {[%clk 0:00:04.4]} 35... fxg3 {[%clk 0:00:48.6]}
36. Bd5+ {[%clk 0:00:04.2]} 36... Kh8 {[%clk 0:00:49.1]} 37. Qxg3 {[%clk
0:00:04.4]} 37... Qf1+ {[%clk 0:00:44.8]} 38. Kh2 {[%clk 0:00:04.4]} 38... Qf2+
{[%clk 0:00:42.7]} 39. Qxf2 {[%clk 0:00:03.9]} 39... Rxf2+ {[%clk 0:00:43.6]}
40. Kg3 {[%clk 0:00:04.5]} 40... Rxa2 {[%clk 0:00:37.1]} 0-1

[Event "Early-Titled-Tuesday-Blitz-May-14-2024"]
[Site "Chess.com"]
[Date "2024.05.14"]
[Round "7"]
[White "Crazy_girl99"]
[Black "HandKnit"]
[Result "1-0"]
[WhiteElo "2643"]
[BlackElo "2496"]
[TimeControl "180+1"]
[EndTime "9:19:28 PDT"]
[Termination "Crazy_girl99 won on time"]

1. e4 {[%clk 0:03:00.9]} 1... e5 {[%clk 0:02:59.2]} 2. Nf3 {[%clk 0:03:00.2]}
2... Nc6 {[%clk 0:02:59.7]} 3. Bb5 {[%clk 0:03:00.1]} 3... a6 {[%clk 0:02:59.1]}
4. Ba4 {[%clk 0:03:00.5]} 4... Bc5 {[%clk 0:02:58.8]} 5. O-O {[%clk 0:02:58.8]}
5... Nge7 {[%clk 0:02:54.6]} 6. c3 {[%clk 0:02:58.9]} 6... Ba7 {[%clk
0:02:54.1]} 7. d4 {[%clk 0:02:59.2]} 7... Ng6 {[%clk 0:02:45.8]} 8. Be3 {[%clk
0:02:56.4]} 8... O-O {[%clk 0:02:41.9]} 9. Nbd2 {[%clk 0:02:44.1]} 9... d6
{[%clk 0:02:39.7]} 10. h3 {[%clk 0:02:42]} 10... Kh8 {[%clk 0:02:38.8]} 11. Bc2
{[%clk 0:02:37.7]} 11... Qe7 {[%clk 0:02:31.7]} 12. a4 {[%clk 0:02:26]} 12... f5
{[%clk 0:02:27.3]} 13. Bg5 {[%clk 0:02:24.2]} 13... Qe8 {[%clk 0:02:22.4]} 14.
exf5 {[%clk 0:02:21.8]} 14... Bxf5 {[%clk 0:02:23.3]} 15. Bxf5 {[%clk
0:02:20.3]} 15... Rxf5 {[%clk 0:02:24.2]} 16. Qc2 {[%clk 0:02:14]} 16... Qf7
{[%clk 0:02:18.9]} 17. Be3 {[%clk 0:02:07.7]} 17... Rf8 {[%clk 0:02:04.8]} 18.
Ng5 {[%clk 0:02:03.5]} 18... Qe8 {[%clk 0:02:02.5]} 19. Rae1 {[%clk 0:01:59.9]}
19... Qe7 {[%clk 0:01:25.6]} 20. Ngf3 {[%clk 0:01:52.4]} 20... exd4 {[%clk
0:01:04.6]} 21. Nxd4 {[%clk 0:01:48.6]} 21... Bxd4 {[%clk 0:00:59.4]} 22. cxd4
{[%clk 0:01:44.6]} 22... Qf7 {[%clk 0:00:47.4]} 23. Ne4 {[%clk 0:01:32.4]} 23...
Nb4 {[%clk 0:00:40.5]} 24. Qe2 {[%clk 0:01:03.7]} 24... Ne7 {[%clk 0:00:23.7]}
25. Ng3 {[%clk 0:01:02.6]} 25... Rf6 {[%clk 0:00:15.7]} 26. Bg5 {[%clk
0:01:01.9]} 26... Ned5 {[%clk 0:00:13.7]} 27. Bxf6 {[%clk 0:01:00]} 27... Qxf6
{[%clk 0:00:14.6]} 28. Qg4 {[%clk 0:00:52.7]} 28... h6 {[%clk 0:00:13.3]} 29.
Re6 {[%clk 0:00:51.1]} 29... Qf7 {[%clk 0:00:13.1]} 30. Nh5 {[%clk 0:00:46.6]}
30... c6 {[%clk 0:00:08.5]} 31. Rg6 {[%clk 0:00:45.8]} 31... Rg8 {[%clk
0:00:08.2]} 32. Rxd6 {[%clk 0:00:39.1]} 32... Nd3 {[%clk 0:00:04.9]} 33. Rd7
{[%clk 0:00:20.5]} 33... Qf8 {[%clk 0:00:02.1]} 34. Rxb7 {[%clk 0:00:20.5]} 1-0

[Event "Early-Titled-Tuesday-Blitz-May-14-2024"]
[Site "Chess.com"]
[Date "2024.05.14"]
[Round "7"]
[White "frederiksvane"]
[Black "GMG"]
[Result "0-1"]
[WhiteElo "2967"]
[BlackElo "2803"]
[TimeControl "180+1"]
[EndTime "9:19:32 PDT"]
[Termination "GMG won on time"]

1. d4 {[%clk 0:03:00.9]} 1... f5 {[%clk 0:02:55.5]} 2. Bg5 {[%clk 0:02:57.4]}
2... h6 {[%clk 0:02:55.1]} 3. Bh4 {[%clk 0:02:56.6]} 3... g5 {[%clk 0:02:54.9]}
4. Bg3 {[%clk 0:02:47.6]} 4... Bg7 {[%clk 0:02:51.3]} 5. e3 {[%clk 0:02:45]}
5... c5 {[%clk 0:02:49.4]} 6. c3 {[%clk 0:02:44.1]} 6... Qb6 {[%clk 0:02:49]} 7.
Qc2 {[%clk 0:02:42.2]} 7... Nf6 {[%clk 0:02:34.2]} 8. Bd3 {[%clk 0:02:41.4]}
8... d6 {[%clk 0:02:20.4]} 9. Nd2 {[%clk 0:02:38.3]} 9... cxd4 {[%clk
0:02:17.9]} 10. cxd4 {[%clk 0:02:37.7]} 10... O-O {[%clk 0:02:04.9]} 11. h4
{[%clk 0:02:30.7]} 11... f4 {[%clk 0:02:03.8]} 12. exf4 {[%clk 0:02:30.6]} 12...
g4 {[%clk 0:02:03.5]} 13. Ne2 {[%clk 0:02:25.5]} 13... Nc6 {[%clk 0:02:03.3]}
14. f5 {[%clk 0:02:20.6]} 14... Nh5 {[%clk 0:01:50.8]} 15. Nb3 {[%clk
0:01:36.5]} 15... Nb4 {[%clk 0:01:46.9]} 16. Qc4+ {[%clk 0:01:36.7]} 16... d5
{[%clk 0:01:45.8]} 17. Qc3 {[%clk 0:01:37.2]} 17... Nxd3+ {[%clk 0:01:40.4]} 18.
Qxd3 {[%clk 0:01:38.1]} 18... Bxf5 {[%clk 0:01:40.4]} 19. Qe3 {[%clk 0:01:38.4]}
19... Qb4+ {[%clk 0:01:35.1]} 20. Nc3 {[%clk 0:01:31.4]} 20... Nxg3 {[%clk
0:01:30.7]} 21. Qxg3 {[%clk 0:01:28.8]} 21... e6 {[%clk 0:01:12.1]} 22. O-O
{[%clk 0:01:05]} 22... Rac8 {[%clk 0:01:11.9]} 23. Rfe1 {[%clk 0:00:45.9]} 23...
b6 {[%clk 0:01:11]} 24. Re2 {[%clk 0:00:21.5]} 24... a5 {[%clk 0:01:06.7]} 25.
Nc1 {[%clk 0:00:03.1]} 25... Qxd4 {[%clk 0:00:55.6]} 26. Nb3 {[%clk 0:00:02.5]}
26... Qb4 {[%clk 0:00:54.4]} 27. Nc1 {[%clk 0:00:02.8]} 27... d4 {[%clk
0:00:48.7]} 28. Ne4 {[%clk 0:00:03]} 28... Bxe4 {[%clk 0:00:41.9]} 29. Rxe4
{[%clk 0:00:03.9]} 29... Qxb2 {[%clk 0:00:42.4]} 30. Nb3 {[%clk 0:00:04.5]}
30... h5 {[%clk 0:00:37.9]} 31. Rae1 {[%clk 0:00:03.5]} 31... d3 {[%clk
0:00:35.6]} 32. Qxd3 {[%clk 0:00:02.7]} 32... Qxf2+ {[%clk 0:00:35.2]} 33. Kh1
{[%clk 0:00:02.9]} 33... Qxh4+ {[%clk 0:00:35.1]} 34. Kg1 {[%clk 0:00:03.6]}
34... Qf2+ {[%clk 0:00:30.7]} 35. Kh1 {[%clk 0:00:04.1]} 35... Rc2 {[%clk
0:00:30.5]} 36. Rg1 {[%clk 0:00:02.5]} 36... Qh4+ {[%clk 0:00:28.8]} 0-1